[Event "Early-Titled-Tuesday-Blitz-October-17-2023"]
[Site "Chess.com"]
[Date "2023.10.17"]
[Round "7"]
[White "MMAHDI2013"]
[Black "salomez"]
[Result "0-1"]
[WhiteElo "2463"]
[BlackElo "2348"]
[TimeControl "180+1"]
[EndTime "9:22:18 PDT"]
[Termination "salomez won on time"]

1. Nf3 {[%clk 0:03:00.9]} 1... Nf6 {[%clk 0:02:59.6]} 2. c4 {[%clk 0:03:00.7]}
2... g6 {[%clk 0:03:00.5]} 3. b3 {[%clk 0:03:01.1]} 3... Bg7 {[%clk 0:03:01.4]}
4. Bb2 {[%clk 0:03:00.3]} 4... d6 {[%clk 0:03:00.2]} 5. d4 {[%clk 0:02:59.5]}
5... O-O {[%clk 0:03:00.1]} 6. g3 {[%clk 0:02:59.6]} 6... b6 {[%clk 0:02:59.8]}
7. Bg2 {[%clk 0:02:59.6]} 7... Bb7 {[%clk 0:03:00.7]} 8. O-O {[%clk 0:02:59.7]}
8... c5 {[%clk 0:03:01.3]} 9. Nc3 {[%clk 0:02:59.7]} 9... Nbd7 {[%clk
0:02:58.9]} 10. d5 {[%clk 0:02:57]} 10... a6 {[%clk 0:02:48.5]} 11. Qc2 {[%clk
0:02:50.6]} 11... b5 {[%clk 0:02:47]} 12. e4 {[%clk 0:02:47.5]} 12... b4 {[%clk
0:02:46.3]} 13. Ne2 {[%clk 0:02:46.7]} 13... e5 {[%clk 0:02:42.1]} 14. dxe6
{[%clk 0:02:41.9]} 14... Bxe4 {[%clk 0:02:30.9]} 15. Qd2 {[%clk 0:02:11.7]}
15... fxe6 {[%clk 0:02:25.5]} 16. Qxd6 {[%clk 0:02:07.1]} 16... Qb6 {[%clk
0:02:06.5]} 17. Qxb6 {[%clk 0:01:48.4]} 17... Nxb6 {[%clk 0:02:07.4]} 18. Nf4
{[%clk 0:01:48.3]} 18... Nh5 {[%clk 0:01:40.8]} 19. Bxg7 {[%clk 0:01:36.9]}
19... Nxg7 {[%clk 0:01:41.7]} 20. Rfe1 {[%clk 0:01:31.4]} 20... Bxf3 {[%clk
0:01:11.1]} 21. Bxf3 {[%clk 0:01:32.3]} 21... Rae8 {[%clk 0:01:09.3]} 22. Bg2
{[%clk 0:01:27.7]} 22... e5 {[%clk 0:01:03.3]} 23. Nd3 {[%clk 0:01:26.8]} 23...
Nd7 {[%clk 0:00:59.1]} 24. Bc6 {[%clk 0:01:26.7]} 24... Re7 {[%clk 0:00:45.4]}
25. f4 {[%clk 0:01:16.2]} 25... Nf5 {[%clk 0:00:38]} 26. Bxd7 {[%clk 0:00:26]}
26... Rxd7 {[%clk 0:00:38.9]} 27. Nxc5 {[%clk 0:00:26.6]} 27... Rd2 {[%clk
0:00:35.9]} 28. Rad1 {[%clk 0:00:23.5]} 28... Rxa2 {[%clk 0:00:35.1]} 29. Rxe5
{[%clk 0:00:23.1]} 29... a5 {[%clk 0:00:24]} 30. Ne6 {[%clk 0:00:22.2]} 30...
Re8 {[%clk 0:00:19.1]} 31. c5 {[%clk 0:00:19.8]} 31... Rc2 {[%clk 0:00:17.7]}
32. Ra1 {[%clk 0:00:10.9]} 32... Rxe6 {[%clk 0:00:08.1]} 33. Rxe6 {[%clk
0:00:10.8]} 33... Nd4 {[%clk 0:00:09]} 34. Re8+ {[%clk 0:00:06.9]} 34... Kf7
{[%clk 0:00:07.6]} 35. Re4 {[%clk 0:00:07.6]} 35... Nf3+ {[%clk 0:00:03.2]} 36.
Kf1 {[%clk 0:00:07.8]} 36... Nd2+ {[%clk 0:00:03.4]} 37. Ke1 {[%clk 0:00:08.2]}
37... Nxe4 {[%clk 0:00:04.3]} 38. Kd1 {[%clk 0:00:08.7]} 38... Rxc5 {[%clk
0:00:04.1]} 39. Ke2 {[%clk 0:00:08.4]} 39... Nc3+ {[%clk 0:00:05]} 40. Kd3
{[%clk 0:00:08.9]} 40... Rd5+ {[%clk 0:00:05]} 41. Kc4 {[%clk 0:00:09.4]} 41...
Rh5 {[%clk 0:00:04.3]} 42. h4 {[%clk 0:00:08.5]} 42... Rf5 {[%clk 0:00:04]} 43.
Rf1 {[%clk 0:00:08]} 43... h6 {[%clk 0:00:03.5]} 44. g4 {[%clk 0:00:08.3]} 44...
Rf6 {[%clk 0:00:02.7]} 45. Ra1 {[%clk 0:00:08.2]} 45... Ra6 {[%clk 0:00:02.4]}
46. Kc5 {[%clk 0:00:05]} 46... Ra8 {[%clk 0:00:03.3]} 47. Kc4 {[%clk 0:00:04.2]}
47... Ra7 {[%clk 0:00:03.3]} 48. Kc5 {[%clk 0:00:04.5]} 48... Ra8 {[%clk
0:00:04.2]} 49. Kc4 {[%clk 0:00:04.7]} 49... h5 {[%clk 0:00:05.1]} 50. gxh5
{[%clk 0:00:02.9]} 50... gxh5 {[%clk 0:00:05.6]} 51. Kc5 {[%clk 0:00:03.2]}
51... Kf6 {[%clk 0:00:05.9]} 52. Kc4 {[%clk 0:00:01.7]} 52... Kf5 {[%clk
0:00:06.3]} 53. Rf1 {[%clk 0:00:02.1]} 53... Rc8+ {[%clk 0:00:04.5]} 54. Kd4
{[%clk 0:00:02.6]} 54... a4 {[%clk 0:00:04.6]} 55. bxa4 {[%clk 0:00:02.7]} 55...
b3 {[%clk 0:00:05.1]} 56. Rf3 {[%clk 0:00:01.2]} 56... b2 {[%clk 0:00:05]} 0-1

[Event "Early-Titled-Tuesday-Blitz-October-17-2023"]
[Site "Chess.com"]
[Date "2023.10.17"]
[Round "7"]
[White "rachidhuilda"]
[Black "Deadmold"]
[Result "1/2-1/2"]
[WhiteElo "2319"]
[BlackElo "2195"]
[TimeControl "180+1"]
[EndTime "9:22:21 PDT"]
[Termination "Game drawn - insufficient material"]

1. d4 {[%clk 0:03:00.9]} 1... d5 {[%clk 0:02:59.1]} 2. Nf3 {[%clk 0:02:54.6]}
2... e6 {[%clk 0:02:58.9]} 3. e3 {[%clk 0:02:54.8]} 3... c5 {[%clk 0:02:58.9]}
4. Bd3 {[%clk 0:02:54.2]} 4... Nc6 {[%clk 0:02:58.8]} 5. b3 {[%clk 0:02:54.3]}
5... Nf6 {[%clk 0:02:55.8]} 6. Bb2 {[%clk 0:02:54.3]} 6... cxd4 {[%clk
0:02:55.9]} 7. exd4 {[%clk 0:02:53.5]} 7... Bd6 {[%clk 0:02:55.3]} 8. O-O {[%clk
0:02:51.8]} 8... O-O {[%clk 0:02:55.1]} 9. Nbd2 {[%clk 0:02:46.7]} 9... Nb4
{[%clk 0:02:49.1]} 10. Be2 {[%clk 0:02:46.6]} 10... Ne4 {[%clk 0:02:43.7]} 11.
c3 {[%clk 0:02:41.8]} 11... Nc6 {[%clk 0:02:42.8]} 12. c4 {[%clk 0:02:18.1]}
12... f5 {[%clk 0:02:34.5]} 13. Ne5 {[%clk 0:01:53.4]} 13... Nxe5 {[%clk
0:02:07.3]} 14. dxe5 {[%clk 0:01:36.8]} 14... Bc5 {[%clk 0:02:06.7]} 15. cxd5
{[%clk 0:01:25.6]} 15... exd5 {[%clk 0:01:59.5]} 16. Nf3 {[%clk 0:01:18.5]}
16... Be6 {[%clk 0:01:41.1]} 17. Bd4 {[%clk 0:01:01]} 17... Ba3 {[%clk
0:01:26.1]} 18. Ne1 {[%clk 0:00:46]} 18... Rc8 {[%clk 0:01:21.7]} 19. Nd3 {[%clk
0:00:42.8]} 19... Nc3 {[%clk 0:01:01.1]} 20. Qd2 {[%clk 0:00:40.5]} 20... Nxe2+
{[%clk 0:00:59.2]} 21. Qxe2 {[%clk 0:00:40.8]} 21... Qd7 {[%clk 0:00:54.4]} 22.
Nf4 {[%clk 0:00:32.2]} 22... Rc6 {[%clk 0:00:50.1]} 23. Qb5 {[%clk 0:00:27.1]}
23... a6 {[%clk 0:00:19.3]} 24. Qd3 {[%clk 0:00:24.3]} 24... Rfc8 {[%clk
0:00:18]} 25. Rfd1 {[%clk 0:00:23.8]} 25... Bc1 {[%clk 0:00:15.9]} 26. Be3
{[%clk 0:00:21]} 26... Bxe3 {[%clk 0:00:15.4]} 27. fxe3 {[%clk 0:00:21.1]} 27...
Rc3 {[%clk 0:00:14.7]} 28. Qd4 {[%clk 0:00:21]} 28... Rc2 {[%clk 0:00:14.4]} 29.
Nxe6 {[%clk 0:00:19.7]} 29... Qxe6 {[%clk 0:00:15.3]} 30. Qxd5 {[%clk
0:00:20.1]} 30... Qxd5 {[%clk 0:00:14.5]} 31. Rxd5 {[%clk 0:00:21]} 31... Re2
{[%clk 0:00:14.6]} 32. Rad1 {[%clk 0:00:19.8]} 32... Rcc2 {[%clk 0:00:14]} 33.
Rd8+ {[%clk 0:00:20.7]} 33... Kf7 {[%clk 0:00:14.1]} 34. R8d7+ {[%clk
0:00:17.2]} 34... Ke6 {[%clk 0:00:13.1]} 35. Rxg7 {[%clk 0:00:16.2]} 35... Kxe5
{[%clk 0:00:12.4]} 36. h4 {[%clk 0:00:14.9]} 36... Rxa2 {[%clk 0:00:11.8]} 37.
Rdd7 {[%clk 0:00:13.9]} 37... Rxe3 {[%clk 0:00:10]} 38. Rxb7 {[%clk 0:00:13.4]}
38... Re1+ {[%clk 0:00:08.2]} 39. Kh2 {[%clk 0:00:13]} 39... Ree2 {[%clk
0:00:08.7]} 40. Kh3 {[%clk 0:00:12.7]} 40... Rab2 {[%clk 0:00:08]} 41. Rbe7+
{[%clk 0:00:08.7]} 41... Kf4 {[%clk 0:00:05.8]} 42. Rxe2 {[%clk 0:00:09.3]}
42... Rxe2 {[%clk 0:00:05.2]} 43. Rxh7 {[%clk 0:00:10.2]} 43... Rb2 {[%clk
0:00:05.2]} 44. Rf7 {[%clk 0:00:09.1]} 44... Rxb3+ {[%clk 0:00:04.7]} 45. Kh2
{[%clk 0:00:07.6]} 45... a5 {[%clk 0:00:04.2]} 46. h5 {[%clk 0:00:07.8]} 46...
Kg5 {[%clk 0:00:03.6]} 47. h6 {[%clk 0:00:05.9]} 47... Kxh6 {[%clk 0:00:03.5]}
48. Rxf5 {[%clk 0:00:06.5]} 48... a4 {[%clk 0:00:04]} 49. Ra5 {[%clk 0:00:06.5]}
49... a3 {[%clk 0:00:04.5]} 50. g3 {[%clk 0:00:07]} 50... Kg6 {[%clk 0:00:04.9]}
51. Kh3 {[%clk 0:00:07.5]} 51... Kh6 {[%clk 0:00:05.3]} 52. Kh4 {[%clk 0:00:08]}
52... Rc3 {[%clk 0:00:04.4]} 53. g4 {[%clk 0:00:08.5]} 53... Kg6 {[%clk
0:00:04.6]} 54. Ra6+ {[%clk 0:00:09]} 54... Kg7 {[%clk 0:00:05]} 55. Kg5 {[%clk
0:00:09.2]} 55... Kg8 {[%clk 0:00:04.4]} 56. Kh5 {[%clk 0:00:08.9]} 56... a2
{[%clk 0:00:03.8]} 57. Rxa2 {[%clk 0:00:07.4]} 57... Rc6 {[%clk 0:00:03.8]} 58.
g5 {[%clk 0:00:07.7]} 58... Rb6 {[%clk 0:00:04.1]} 59. Rf2 {[%clk 0:00:06.2]}
59... Ra6 {[%clk 0:00:04]} 60. Rf5 {[%clk 0:00:06.3]} 60... Rb6 {[%clk 0:00:04]}
61. Re5 {[%clk 0:00:04.5]} 61... Ra6 {[%clk 0:00:04.2]} 62. Rf5 {[%clk
0:00:04.4]} 62... Rb6 {[%clk 0:00:04.6]} 63. Rf6 {[%clk 0:00:04.5]} 63... Rxf6
{[%clk 0:00:04.3]} 64. gxf6 {[%clk 0:00:05.4]} 64... Kf7 {[%clk 0:00:04.8]} 65.
Kg5 {[%clk 0:00:06]} 65... Kf8 {[%clk 0:00:05]} 66. Kf5 {[%clk 0:00:05.9]} 66...
Kf7 {[%clk 0:00:05.5]} 67. Kg5 {[%clk 0:00:06.4]} 67... Kf8 {[%clk 0:00:05.6]}
68. Kg6 {[%clk 0:00:07.3]} 68... Kg8 {[%clk 0:00:05.9]} 69. Kg5 {[%clk
0:00:06.6]} 69... Kf7 {[%clk 0:00:06.2]} 70. Kf4 {[%clk 0:00:07.2]} 70... Kxf6
{[%clk 0:00:06.4]} 1/2-1/2

[Event "Early-Titled-Tuesday-Blitz-October-17-2023"]
[Site "Chess.com"]
[Date "2023.10.17"]
[Round "7"]
[White "Nuvas"]
[Black "Krakozia"]
[Result "0-1"]
[WhiteElo "2827"]
[BlackElo "3019"]
[TimeControl "180+1"]
[EndTime "9:22:23 PDT"]
[Termination "Krakozia won by resignation"]

1. d4 {[%clk 0:03:00.9]} 1... d5 {[%clk 0:02:59]} 2. c4 {[%clk 0:03:01.1]} 2...
e6 {[%clk 0:02:59.5]} 3. Nc3 {[%clk 0:03:01.4]} 3... Nf6 {[%clk 0:02:59.4]} 4.
cxd5 {[%clk 0:03:01.8]} 4... exd5 {[%clk 0:02:59.2]} 5. Bg5 {[%clk 0:03:02.1]}
5... c6 {[%clk 0:02:59.5]} 6. e3 {[%clk 0:03:02.4]} 6... h6 {[%clk 0:02:59.8]}
7. Bh4 {[%clk 0:03:02.2]} 7... Be7 {[%clk 0:03:00.4]} 8. Bd3 {[%clk 0:03:02.2]}
8... O-O {[%clk 0:03:00.9]} 9. Nge2 {[%clk 0:02:59.9]} 9... Ne8 {[%clk
0:03:00.3]} 10. Bg3 {[%clk 0:02:59.3]} 10... Nd6 {[%clk 0:03:00.2]} 11. Qc2
{[%clk 0:02:57.9]} 11... a5 {[%clk 0:02:58.2]} 12. O-O {[%clk 0:02:56.6]} 12...
Re8 {[%clk 0:02:58.1]} 13. Rae1 {[%clk 0:02:55.2]} 13... Na6 {[%clk 0:02:57.7]}
14. a3 {[%clk 0:02:55.2]} 14... Bf8 {[%clk 0:02:53.8]} 15. Nc1 {[%clk
0:02:24.8]} 15... Nc7 {[%clk 0:02:41]} 16. f3 {[%clk 0:02:19.5]} 16... Ne6
{[%clk 0:02:38.6]} 17. Nb3 {[%clk 0:02:14.3]} 17... b5 {[%clk 0:02:27.7]} 18.
Kh1 {[%clk 0:01:45]} 18... a4 {[%clk 0:02:25.7]} 19. Nc5 {[%clk 0:01:44]} 19...
Nc4 {[%clk 0:02:12.6]} 20. Bxc4 {[%clk 0:01:28]} 20... dxc4 {[%clk 0:02:09.8]}
21. Nxe6 {[%clk 0:01:28]} 21... Bxe6 {[%clk 0:02:09.6]} 22. Rd1 {[%clk
0:01:28.1]} 22... Qa5 {[%clk 0:01:53.7]} 23. e4 {[%clk 0:01:27.7]} 23... b4
{[%clk 0:01:51.8]} 24. axb4 {[%clk 0:01:27]} 24... Qxb4 {[%clk 0:01:52.7]} 25.
d5 {[%clk 0:01:24.4]} 25... cxd5 {[%clk 0:01:52.1]} 26. Nxd5 {[%clk 0:01:24]}
26... Bxd5 {[%clk 0:01:47.4]} 27. Rxd5 {[%clk 0:01:24]} 27... Qb3 {[%clk
0:01:41.8]} 28. Rc1 {[%clk 0:01:21.1]} 28... Rec8 {[%clk 0:01:40.5]} 29. Rd4
{[%clk 0:01:13]} 29... c3 {[%clk 0:01:14.3]} 30. bxc3 {[%clk 0:01:03.6]} 30...
Ba3 {[%clk 0:01:11.7]} 31. Qxb3 {[%clk 0:00:48.8]} 31... axb3 {[%clk 0:01:12.6]}
32. Rb1 {[%clk 0:00:48.3]} 32... Rxc3 {[%clk 0:01:11.8]} 33. Rdd1 {[%clk
0:00:28.9]} 33... b2 {[%clk 0:01:09.9]} 34. Be5 {[%clk 0:00:17.9]} 34... Rc1
{[%clk 0:01:06.4]} 35. h4 {[%clk 0:00:16.9]} 35... Rxd1+ {[%clk 0:01:00.4]} 36.
Rxd1 {[%clk 0:00:17.8]} 36... Rc8 {[%clk 0:01:00]} 37. Kh2 {[%clk 0:00:17.3]}
37... Rc1 {[%clk 0:00:53.9]} 38. Rd8+ {[%clk 0:00:17.9]} 38... Kh7 {[%clk
0:00:52.8]} 39. Bxb2 {[%clk 0:00:18.6]} 39... Bxb2 {[%clk 0:00:53.1]} 40. Rd7
{[%clk 0:00:17.6]} 40... Be5+ {[%clk 0:00:45.3]} 41. Kh3 {[%clk 0:00:17.9]}
41... h5 {[%clk 0:00:34.1]} 42. g3 {[%clk 0:00:18]} 42... f6 {[%clk 0:00:31.9]}
43. f4 {[%clk 0:00:17.8]} 43... Bc7 {[%clk 0:00:30]} 44. Rd5 {[%clk 0:00:15.4]}
44... Kg6 {[%clk 0:00:30]} 45. Rd3 {[%clk 0:00:13.4]} 45... Rc2 {[%clk
0:00:29.5]} 46. Re3 {[%clk 0:00:12.3]} 46... Bb6 {[%clk 0:00:29.4]} 47. Rb3
{[%clk 0:00:12.2]} 47... Bg1 {[%clk 0:00:27.3]} 48. g4 {[%clk 0:00:10.9]} 48...
hxg4+ {[%clk 0:00:26.8]} 49. Kxg4 {[%clk 0:00:11.6]} 49... Rg2+ {[%clk
0:00:23.9]} 50. Kh3 {[%clk 0:00:12.1]} 50... Rh2+ {[%clk 0:00:22.1]} 51. Kg3
{[%clk 0:00:11.8]} 51... Rc2 {[%clk 0:00:20.6]} 52. Kh3 {[%clk 0:00:10.4]} 52...
Bf2 {[%clk 0:00:20.5]} 53. Kg4 {[%clk 0:00:09.6]} 53... Kh6 {[%clk 0:00:20.2]}
54. Rb8 {[%clk 0:00:08.5]} 54... Kh7 {[%clk 0:00:19.4]} 55. Rb3 {[%clk
0:00:08.2]} 55... Rc4 {[%clk 0:00:19.1]} 56. Kf3 {[%clk 0:00:07.4]} 56... Bxh4
{[%clk 0:00:18.2]} 57. Rb5 {[%clk 0:00:07.2]} 57... Be1 {[%clk 0:00:16.7]} 58.
Rb1 {[%clk 0:00:07.4]} 58... Ba5 {[%clk 0:00:16.3]} 59. Rh1+ {[%clk 0:00:06.9]}
59... Kg8 {[%clk 0:00:15.7]} 60. Rg1 {[%clk 0:00:07.8]} 60... Bc7 {[%clk
0:00:15.3]} 61. Rg2 {[%clk 0:00:07.7]} 61... Rc3+ {[%clk 0:00:14.9]} 62. Kg4
{[%clk 0:00:07.8]} 62... Kf7 {[%clk 0:00:15.5]} 63. Rd2 {[%clk 0:00:07.4]} 63...
Rc4 {[%clk 0:00:15.6]} 64. Kf3 {[%clk 0:00:07.6]} 64... Ke7 {[%clk 0:00:15]} 65.
Rg2 {[%clk 0:00:07.5]} 65... Rc3+ {[%clk 0:00:14.7]} 66. Kg4 {[%clk 0:00:07.5]}
66... g6 {[%clk 0:00:15]} 67. Rh2 {[%clk 0:00:06.7]} 67... Ke6 {[%clk
0:00:14.8]} 68. f5+ {[%clk 0:00:06.6]} 68... gxf5+ {[%clk 0:00:13.8]} 69. exf5+
{[%clk 0:00:07.5]} 69... Kd5 {[%clk 0:00:13.9]} 70. Rd2+ {[%clk 0:00:07.9]}
70... Ke4 {[%clk 0:00:13.4]} 71. Rd7 {[%clk 0:00:07.4]} 71... Rg3+ {[%clk
0:00:12.9]} 72. Kh4 {[%clk 0:00:08.1]} 72... Be5 {[%clk 0:00:12.9]} 0-1

[Event "Early-Titled-Tuesday-Blitz-October-17-2023"]
[Site "Chess.com"]
[Date "2023.10.17"]
[Round "7"]
[White "PeshkaCh"]
[Black "Russian_berezka"]
[Result "1-0"]
[WhiteElo "2820"]
[BlackElo "2678"]
[TimeControl "180+1"]
[EndTime "9:22:31 PDT"]
[Termination "PeshkaCh won by resignation"]

1. Nf3 {[%clk 0:03:00.9]} 1... Nf6 {[%clk 0:02:59.8]} 2. d4 {[%clk 0:03:01.5]}
2... d5 {[%clk 0:02:59.9]} 3. c4 {[%clk 0:03:01.2]} 3... e6 {[%clk 0:03:00.1]}
4. Nc3 {[%clk 0:03:00.8]} 4... Bb4 {[%clk 0:02:59.8]} 5. cxd5 {[%clk 0:03:01.1]}
5... exd5 {[%clk 0:02:59.9]} 6. Bg5 {[%clk 0:03:01.8]} 6... h6 {[%clk
0:02:59.9]} 7. Bxf6 {[%clk 0:03:01.6]} 7... Qxf6 {[%clk 0:03:00.8]} 8. Qa4+
{[%clk 0:03:01.9]} 8... Nc6 {[%clk 0:03:00.9]} 9. e3 {[%clk 0:03:02.6]} 9... O-O
{[%clk 0:03:00.7]} 10. Be2 {[%clk 0:03:02.2]} 10... Be6 {[%clk 0:02:51.4]} 11.
O-O {[%clk 0:03:01.6]} 11... a6 {[%clk 0:02:47.2]} 12. a3 {[%clk 0:03:01.2]}
12... Bd6 {[%clk 0:02:47.2]} 13. Rac1 {[%clk 0:02:53.6]} 13... Ne7 {[%clk
0:02:43.2]} 14. Qc2 {[%clk 0:02:45.3]} 14... g5 {[%clk 0:02:34.6]} 15. e4 {[%clk
0:02:42.2]} 15... Bf4 {[%clk 0:02:20.6]} 16. Rce1 {[%clk 0:02:31.2]} 16... g4
{[%clk 0:02:19.9]} 17. Ne5 {[%clk 0:02:28.6]} 17... h5 {[%clk 0:01:57.2]} 18. g3
{[%clk 0:02:19.2]} 18... Bxe5 {[%clk 0:01:54.3]} 19. dxe5 {[%clk 0:02:20.1]}
19... Qxe5 {[%clk 0:01:42.4]} 20. exd5 {[%clk 0:02:19.8]} 20... Bf5 {[%clk
0:01:25.7]} 21. Bd3 {[%clk 0:01:59]} 21... Qf6 {[%clk 0:01:19.6]} 22. Bxf5
{[%clk 0:01:47.2]} 22... Qxf5 {[%clk 0:01:05.6]} 23. Qxf5 {[%clk 0:01:36.5]}
23... Nxf5 {[%clk 0:01:06.5]} 24. Re5 {[%clk 0:01:37.1]} 24... Ng7 {[%clk
0:01:06.6]} 25. Re7 {[%clk 0:01:32.9]} 25... Rac8 {[%clk 0:01:00.1]} 26. d6
{[%clk 0:01:16]} 26... cxd6 {[%clk 0:00:54.5]} 27. Rxb7 {[%clk 0:01:15.5]} 27...
Rb8 {[%clk 0:00:53.5]} 28. Rxb8 {[%clk 0:01:05.2]} 28... Rxb8 {[%clk 0:00:54.4]}
29. b4 {[%clk 0:01:05.8]} 29... a5 {[%clk 0:00:54.5]} 30. Rb1 {[%clk 0:00:38.5]}
30... axb4 {[%clk 0:00:52.4]} 31. axb4 {[%clk 0:00:39.4]} 31... Ne6 {[%clk
0:00:31.5]} 32. Ne4 {[%clk 0:00:39.2]} 32... Rb6 {[%clk 0:00:21.2]} 33. Nf6+
{[%clk 0:00:22.4]} 33... Kg7 {[%clk 0:00:21.3]} 34. Nd5 {[%clk 0:00:21.4]} 34...
Rb5 {[%clk 0:00:19.1]} 35. Nc3 {[%clk 0:00:21.7]} 35... Rb6 {[%clk 0:00:19.1]}
36. b5 {[%clk 0:00:18.8]} 36... Nc7 {[%clk 0:00:17.1]} 37. Rd1 {[%clk
0:00:16.2]} 37... d5 {[%clk 0:00:10.5]} 38. Nxd5 {[%clk 0:00:14.4]} 38... Rd6
{[%clk 0:00:09.8]} 39. b6 {[%clk 0:00:12]} 39... Nxd5 {[%clk 0:00:08.1]} 40. b7
{[%clk 0:00:12.4]} 40... Rb6 {[%clk 0:00:05.2]} 41. Rxd5 {[%clk 0:00:13]} 41...
Rxb7 {[%clk 0:00:05.7]} 42. Rxh5 {[%clk 0:00:13.7]} 42... Rb4 {[%clk 0:00:05.9]}
43. Kg2 {[%clk 0:00:11.7]} 43... Kg6 {[%clk 0:00:05.8]} 44. Rc5 {[%clk
0:00:12.3]} 44... f5 {[%clk 0:00:06.2]} 45. h3 {[%clk 0:00:12.1]} 45... gxh3+
{[%clk 0:00:06.2]} 46. Kxh3 {[%clk 0:00:13]} 46... Ra4 {[%clk 0:00:06.2]} 47.
Rc6+ {[%clk 0:00:11.1]} 47... Kg5 {[%clk 0:00:04.2]} 48. f4+ {[%clk 0:00:06.1]}
48... Kh5 {[%clk 0:00:04.5]} 49. Rc5 {[%clk 0:00:06.9]} 49... Kg6 {[%clk
0:00:04.1]} 50. Kh4 {[%clk 0:00:07.5]} 50... Ra6 {[%clk 0:00:02.9]} 51. Rc8
{[%clk 0:00:07.6]} 51... Re6 {[%clk 0:00:02.1]} 52. Rg8+ {[%clk 0:00:07.8]}
52... Kh6 {[%clk 0:00:02.7]} 53. Rg5 {[%clk 0:00:06]} 53... Rf6 {[%clk 0:00:03]}
54. Kh3 {[%clk 0:00:05.5]} 54... Rf7 {[%clk 0:00:02.9]} 55. Kg2 {[%clk
0:00:05.6]} 55... Rf6 {[%clk 0:00:02.7]} 56. Kf3 {[%clk 0:00:06.2]} 56... Rf7
{[%clk 0:00:02.9]} 57. Ke3 {[%clk 0:00:06.8]} 57... Rf6 {[%clk 0:00:01.9]} 58.
Kd4 {[%clk 0:00:07.3]} 58... Rf8 {[%clk 0:00:01.9]} 59. Ke5 {[%clk 0:00:07.6]}
59... Re8+ {[%clk 0:00:01.7]} 60. Kxf5 {[%clk 0:00:07.9]} 60... Re1 {[%clk
0:00:01.9]} 61. Rg6+ {[%clk 0:00:06.7]} 61... Kh7 {[%clk 0:00:01.9]} 62. Ra6
{[%clk 0:00:07.2]} 62... Rc1 {[%clk 0:00:01]} 63. Kg5 {[%clk 0:00:07.6]} 63...
Rc5+ {[%clk 0:00:01.5]} 64. f5 {[%clk 0:00:08.2]} 64... Kg7 {[%clk 0:00:02.2]}
65. Ra7+ {[%clk 0:00:08.2]} 65... Kf8 {[%clk 0:00:02.9]} 66. Kg6 {[%clk
0:00:08.5]} 66... Rc3 {[%clk 0:00:02]} 67. g4 {[%clk 0:00:08.5]} 67... Rc8
{[%clk 0:00:02.7]} 68. f6 {[%clk 0:00:08.6]} 68... Kg8 {[%clk 0:00:03.3]} 69.
Rg7+ {[%clk 0:00:08.9]} 69... Kh8 {[%clk 0:00:03.2]} 70. Rh7+ {[%clk 0:00:09.8]}
70... Kg8 {[%clk 0:00:03.8]} 71. f7+ {[%clk 0:00:10.7]} 71... Kf8 {[%clk
0:00:04.6]} 72. Rh8+ {[%clk 0:00:11.6]} 1-0